bitfinex/quotes_SOLUSD_20240822
["timestamp","ask_amount","ask_price","bid_price","bid_amount"]
[1724317737884,10.46,143.23,143.21,6.6257]
[1724317748307,1.74571919,143.22,143.19,16.1445]
[1724317748508,10.46,143.21,143.19,16.1445]
[1724317751387,10.46,143.23,143.19,16.1445]
[1724317751586,6.9809,143.25,143.2,1.39662058]
[1724317751902,10.46,143.24,143.2,1.39662058]
[1724317752411,10.46,143.24,143.19,16.1445]
[1724317753089,10.46,143.22,143.19,16.1445]
[1724317754200,1.7458866,143.21,143.19,16.1445]
[1724317754987,10.46,143.22,143.19,16.1445]
[1724317754988,12.20588333,143.22,143.19,16.1445]
[1724317756596,12.20592303,143.22,143.19,16.1445]
[1724317757423,10.46,143.22,143.19,16.1445]
[1724317758104,6.9808,143.25,143.19,16.1445]
[1724317758307,10.46,143.24,143.19,16.1445]
[1724317758519,1.74557703,143.23,143.19,16.1445]
[1724317759730,10.46,143.22,143.19,16.1445]
[1724317760142,12.20580291,143.22,143.19,16.1445]
[1724317761231,10.46,143.22,143.19,16.1445]
[1724317761534,10.46,143.22,143.19,16.0845]
[1724317761720,12.20580147,143.22,143.19,16.0845]
[1724317765215,10.46,143.22,143.19,16.0845]
[1724317766331,12.20579464,143.22,143.19,16.0845]
[1724317767203,12.20586298,143.22,143.19,16.0845]
[1724317767403,12.20592175,143.22,143.19,16.0845]
[1724317767603,10.46,143.22,143.19,16.0845]
[1724317784029,10.46,143.2,143.19,16.0845]
[1724317784352,12.20596817,143.2,143.19,16.0845]
[1724317784652,10.46,143.2,143.19,16.0845]
[1724317789935,10.46,143.2,143.17,6.9311247]
[1724317792344,12.20607483,143.2,143.17,6.9311247]
[1724317793140,19.18937483,143.2,143.17,0.8434247]
[1724317793456,10.46,143.18,143.17,0.8434247]
[1724317799874,17.4535,143.24,143.17,0.8434247]
[1724317800162,6.9823,143.22,143.17,0.8434247]
[1724317800470,37.4419,143.23,143.17,2.24024234]
[1724317800629,37.4419,143.23,143.17,0.8434247]
[1724317800829,39.18768659,143.23,143.17,0.8434247]
[1724317801064,28.72768659,143.23,143.17,0.8434247]
[1724317801360,10.46,143.22,143.17,0.8434247]
[1724317801858,28.72768659,143.23,143.17,0.8434247]
[1724317802171,10.46,143.23,143.18,0.25098]
[1724317802339,12.2057044,143.23,143.18,0.12549]
[1724317802541,12.2057044,143.23,143.17,7.4648247]
[1724317804057,10.46,143.19,143.17,7.4648247]
[1724317805641,10.46,143.2,143.17,7.4648247]
[1724317807841,10.46,143.22,143.17,7.4648247]
[1724317809569,10.46,143.22,143.18,1.39669715]
[1724317809955,10.46,143.22,143.17,7.4648247]
[1724317814173,17.4423,143.22,143.17,7.4648247]
[1724317815676,17.4423,143.22,143.17,8.86152381]
[1724317815889,10.46,143.22,143.18,1.52218911]
[1724317816547,14.2812026,143.24,143.2,15.8646]
[1724317816754,24.7412026,143.24,143.2,15.8646]
[1724317816972,7.2998026,143.24,143.2,15.8646]
[1724317817478,10.46,143.25,143.2,15.8646]
[1724317818290,6.9803,143.26,143.2,15.8646]
[1724317818466,6.9799,143.27,143.21,1.6472302]
[1724317818659,10.46,143.27,143.22,6.3774]
[1724317818858,10.46,143.27,143.23,1.3961704]
[1724317819263,6.9793,143.28,143.23,1.3961704]
[1724317819573,17.4393,143.28,143.23,1.3961704]
[1724317820093,6.9793,143.28,143.23,1.3961704]
[1724317820382,17.4393,143.28,143.23,1.3961704]
[1724317824065,17.4393,143.28,143.22,6.3774]
[1724317824066,6.9808,143.25,143.22,6.3774]
[1724317824266,10.46,143.24,143.22,6.3774]
[1724317825779,6.9803,143.26,143.22,6.3774]
[1724317825966,10.46,143.26,143.22,6.3774]
[1724317826369,6.9799,143.27,143.22,6.3774]
[1724317826582,10.46,143.27,143.23,1.39613688]
[1724317826790,10.46,143.27,143.23,1.52162688]
[1724317827086,12.20514461,143.27,143.23,0.12549]
[1724317827285,12.20514461,143.27,143.22,6.3774]
[1724317827489,10.46,143.27,143.22,6.3774]
[1724317828580,19.18499737,143.27,143.22,6.3774]
[1724317829501,17.4398,143.27,143.22,6.3774]
[1724317830492,1.74521042,143.26,143.22,6.3774]
[1724317831699,17.4398,143.27,143.22,6.3774]
[1724317832484,10.46,143.25,143.22,6.3774]
[1724317834996,10.46,143.27,143.23,1.39617486]
[1724317835504,6.9794,143.28,143.24,15.2916]
[1724317835668,10.46,143.27,143.24,15.2916]
[1724317839382,10.46,143.29,143.24,15.2916]
[1724317839679,10.46,143.27,143.24,15.2916]
[1724317840277,10.46,143.25,143.24,15.2916]
[1724317845219,10.46,143.25,143.22,6.3774]
[1724317845425,10.46,143.25,143.2,16.0038]
[1724317845426,10.46,143.23,143.2,16.0038]
[1724317858828,10.46,143.21,143.17,23.5450247]
[1724317859029,10.46,143.21,143.18,0.25098]
[1724317859223,1.74565766,143.27,143.17,23.5450247]
[1724317859224,10.46,143.19,143.17,23.5450247]
[1724317864341,6.9814,143.24,143.17,23.5450247]
[1724317864540,10.46,143.22,143.18,0.25098]
[1724317865444,6.9799,143.27,143.18,20.25098]
[1724317865651,10.46,143.26,143.19,65.0]
[1724317865852,6.9789,143.29,143.22,15.5219]
[1724317866051,10.46,143.27,143.23,45.25098]
[1724317866735,10.46,143.25,143.24,1.39602297]
[1724317866933,10.46,143.25,143.23,0.25098]
[1724317866934,10.46,143.25,143.23,1.64710484]
[1724317867660,10.46,143.25,143.23,0.25098]
[1724317868859,10.46,143.25,143.22,15.5219]
[1724317869926,8.72479282,143.28,143.22,15.5219]
[1724317869927,10.46,143.23,143.22,15.5219]
[1724317870161,10.46,143.23,143.18,16.4335]
[1724317870354,10.46,143.23,143.19,65.25098]
[1724317870563,10.46,143.23,143.18,16.4335]
[1724317871960,10.46,143.23,143.19,0.25098]
[1724317875357,10.46,143.21,143.19,0.25098]
[1724317879873,10.46,143.21,143.17,7.2844247]
[1724317880169,10.46,143.19,143.17,0.8434247]
[1724317883748,1.74617418,143.18,143.17,0.8434247]
[1724317887673,1.74632606,143.18,143.17,0.8434247]
[1724317891357,12.20632606,143.18,143.17,0.8434247]
[1724317895550,10.46,143.18,143.17,0.8434247]
[1724317896145,6.9837,143.19,143.17,0.8434247]
[1724317896342,10.46,143.18,143.17,0.8434247]
[1724317911090,17.4442,143.18,143.17,0.8434247]
[1724317916013,10.46,143.18,143.11,16.094]
[1724317916216,10.46,143.13,143.12,45.25098]
[1724317917415,10.46,143.13,143.12,0.25098]
[1724317919632,10.46,143.13,143.12,0.12549]
[1724317920318,10.46,143.13,143.11,16.094]
[1724317922515,10.46,143.13,143.1,6.4819]
[1724317922822,10.46,143.11,143.1,6.4819]
[1724317926711,10.46,143.11,143.08,16.55]
[1724317926894,10.46,143.11,143.09,0.25098]
[1724317927095,10.46,143.09,143.04,35.5291]
[1724317928744,10.46,143.09,143.05,45.25098]
[1724317930020,17.4486,143.09,143.05,0.12549]
[1724317930234,10.46,143.07,143.05,0.12549]
[1724317930527,10.46,143.07,143.05,0.25098]
[1724317931114,10.46,143.07,143.05,0.12549]
[1724317931315,10.46,143.07,143.04,22.0461]
[1724317932154,10.46,143.07,143.04,15.5291]
[1724317933426,10.46,143.05,143.04,0.1]
[1724317938360,6.9877,143.11,143.04,0.1]
[1724317938564,10.46,143.08,143.04,0.1]
[1724317938736,10.46,143.08,143.04,1.49783799]
[1724317938935,10.46,143.09,143.04,1.49783799]
[1724317939134,6.9873,143.12,143.05,0.12549]
[1724317939350,10.46,143.09,143.06,15.7755]
[1724317939855,10.46,143.09,143.06,17.17326569]
[1724317940055,6.9867,143.13,143.07,0.25098]
[1724317940365,10.46,143.1,143.07,45.25098]
[1724317943261,10.46,143.1,143.06,15.7755]
[1724317943680,10.46,143.1,143.07,0.25098]
[1724317945079,10.46,143.1,143.07,0.12549]
[1724317945249,10.46,143.1,143.06,15.7755]
[1724317946956,8.73383835,143.13,143.06,15.7755]
[1724317946957,7.30415046,143.15,143.07,6.1509]
[1724317947160,10.46,143.13,143.08,45.25098]
[1724317947359,10.46,143.13,143.08,46.6484431]
[1724317947578,10.46,143.13,143.08,45.25098]
[1724317948597,10.46,143.11,143.08,45.25098]
[1724317949091,10.46,143.11,143.08,0.12549]
[1724317949386,10.46,143.11,143.08,1.52308889]
[1724317950184,10.46,143.11,143.07,6.1509]
[1724317950385,10.46,143.11,143.07,7.54851724]
[1724317950687,10.46,143.11,143.07,6.1509]
[1724317950983,10.46,143.11,143.07,7.54851535]
[1724317951280,10.46,143.11,143.08,1.3976156]
[1724317952788,10.46,143.11,143.08,1.39761298]
[1724317954479,10.46,143.11,143.07,6.1509]
[1724317954678,10.46,143.11,143.08,0.12549]
[1724317955585,10.46,143.11,143.07,6.1509]
[1724317956860,1.74699738,143.14,143.07,6.1509]
[1724317957095,10.46,143.11,143.07,6.1509]
[1724317965492,10.46,143.11,143.04,20.1]
[1724317965493,10.46,143.09,143.04,0.1]
[1724317965676,32.9944,143.13,143.04,0.1]
[1724317965677,10.46,143.05,143.04,0.1]
[1724317966499,12.20785426,143.05,143.04,0.1]
[1724317967102,10.46,143.05,143.04,0.1]
[1724317972807,17.4505,143.05,143.04,0.1]
[1724317973309,10.46,143.05,143.04,0.1]
[1724317974302,12.20787842,143.05,143.04,0.1]
[1724317974606,10.46,143.05,143.04,0.1]
[1724317980314,26.9894,143.08,143.04,0.1]
[1724317980618,10.46,143.05,143.04,0.1]
[1724317983018,12.20784818,143.05,143.04,0.1]
[1724317983187,10.46,143.05,143.04,0.1]
[1724317987235,10.46,143.05,143.04,0.1]
[1724317988218,17.4505,143.05,143.04,0.1]
[1724317988998,10.46,143.05,143.04,0.1]
[1724317989207,12.20790748,143.05,143.04,0.1]
[1724317990801,10.46,143.05,143.04,0.1]
[1724317995148,17.4505,143.05,143.04,0.1]
[1724317995518,10.46,143.05,143.04,0.1]
[1724317995843,12.20787344,143.05,143.04,0.1]
[1724317998146,19.19837344,143.05,143.04,0.1]
[1724317998317,17.4505,143.05,143.04,0.1]
[1724317999563,6.9915,143.03,143.02,0.8434247]
[1724317999855,37.4515,143.03,143.02,0.8434247]
[1724318002556,6.9925,143.01,142.96,16.4094]
[1724318002749,10.46,142.99,142.96,16.4094]
[1724318006960,4.17940427,143.08,142.97,20.0]
[1724318007271,10.46,143.05,143.0,21.4147]
[1724318007440,7.30939404,143.1,143.01,66.64913061]
[1724318007640,10.46,143.09,143.01,75.71098]
[1724318008865,10.46,143.09,143.01,65.25098]
[1724318008866,12.20740847,143.09,143.01,65.25098]
[1724318009547,10.46,143.07,143.01,65.25098]
[1724318012376,10.46,143.05,143.0,21.4147]
[1724318013588,10.46,143.05,143.01,0.12549]
[1724318013790,10.46,143.05,143.01,45.25098]
[1724318013988,10.46,143.05,143.0,21.4147]
[1724318014850,17.4506,143.05,143.0,21.4147]
[1724318015882,10.46,143.03,143.0,21.4147]
[1724318017761,8.73902737,143.04,143.0,21.4147]
[1724318017762,10.46,143.01,143.0,21.4147]
[1724318021173,10.46,143.01,143.0,15.3843]
[1724318022389,6.9916,143.03,143.0,15.3843]
[1724318022596,10.46,143.01,143.0,15.3843]
[1724318023096,10.46,143.01,142.97,22.9919]
[1724318023292,10.46,143.01,142.98,0.12549]
[1724318023596,10.46,143.01,142.98,0.25098]
[1724318023971,10.46,142.99,142.97,22.9919]
[1724318024687,17.4527,143.01,142.97,22.9919]
[1724318026899,10.46,143.01,142.98,1.39866986]
[1724318029786,10.46,143.01,142.97,22.9919]
[1724318030101,10.46,143.01,142.98,0.25098]
[1724318030977,10.26,143.01,142.98,0.25098]
[1724318031210,10.26,143.01,142.98,1.64955288]
[1724318034308,17.4754,143.06,142.98,1.64955288]
[1724318034309,6.9912,143.04,142.98,1.64955288]
[1724318034487,10.46,143.03,142.98,45.25098]
[1724318039942,10.46,143.03,142.97,22.9919]
[1724318039943,10.46,143.01,142.97,22.9919]
[1724318040319,10.46,143.01,142.98,1.39857488]
[1724318040537,6.9917,143.03,142.98,1.39857488]
[1724318040837,10.46,143.03,142.98,1.39857488]
[1724318041138,10.46,143.03,142.97,22.9919]
[1724318041338,10.46,143.03,142.98,45.25098]
[1724318042007,17.4515,143.03,142.98,0.25098]
[1724318043519,10.46,143.01,142.98,0.25098]
[1724318049020,10.46,142.99,142.97,22.9919]
[1724318049725,10.46,142.99,142.97,16.6223]
[1724318068284,10.46,142.99,142.96,0.12549]
[1724318068486,12.20855891,142.99,142.95,0.25098]
[1724318070777,10.46,142.98,142.95,0.25098]
[1724318071278,1.74855935,142.97,142.91,6.0705]
[1724318071459,41.84,143.01,142.91,6.0705]
[1724318071669,21.74884121,143.0,142.91,6.0705]
[1724318071881,10.46,142.95,142.91,6.0705]
[1724318072266,10.46,142.93,142.91,6.0705]
[1724318072893,10.46,142.93,142.9,15.2961]
[1724318074786,10.46,142.93,142.91,0.12549]
[1724318074995,10.46,142.93,142.9,15.2961]
[1724318075288,10.46,142.91,142.9,15.2961]
[1724318075455,10.46,142.91,142.88,7.0250247]
[1724318075658,10.46,142.91,142.88,0.8434247]
[1724318076471,9.4342,142.97,142.88,2.24305926]
[1724318076686,10.46,142.95,142.88,2.24305926]
[1724318077187,6.9946,142.97,142.89,6.3833]
[1724318077491,10.46,142.96,142.9,1.39918538]
[1724318077788,10.46,142.96,142.91,0.25098]
[1724318078557,8.74322407,142.98,142.91,0.25098]
[1724318078775,12.20892407,142.98,142.92,16.5078]
[1724318078957,12.20892407,142.98,142.93,0.25098]
[1724318080579,10.46,142.98,142.93,0.25098]
[1724318080758,10.46,142.98,142.93,1.65006164]
[1724318080958,9.4342,143.01,142.93,1.65006164]
[1724318080959,6.5977,143.04,142.93,1.65006164]
[1724318081164,10.46,142.99,142.93,52.92996164]
[1724318081489,10.46,142.99,142.93,51.53088]
[1724318081670,10.46,142.99,142.94,1.39895505]
[1724318081869,10.46,142.99,142.95,0.12549]
[1724318082179,10.46,142.99,142.93,51.53088]
[1724318082576,10.46,142.95,142.92,16.5078]
[1724318084668,10.46,142.93,142.89,6.2645]
[1724318086710,10.46,142.93,142.9,0.12549]
[1724318087184,10.46,142.93,142.9,0.25098]
[1724318088498,10.46,142.95,142.9,0.25098]
[1724318088680,10.46,142.95,142.9,45.25098]
[1724318089784,10.46,142.95,142.91,1.39924999]
[1724318089975,10.46,142.95,142.9,45.25098]
[1724318090173,10.46,142.97,142.9,65.25098]
[1724318090879,1.74885418,142.98,142.9,65.25098]
[1724318091181,10.46,142.98,142.91,15.8038]
[1724318091394,10.46,142.98,142.92,45.12549]
[1724318091595,10.46,142.98,142.93,0.12549]
[1724318101623,1.74874304,142.97,142.93,0.12549]
[1724318101791,17.4541,142.98,142.93,0.12549]
[1724318102208,19.20291996,142.98,142.93,0.12549]
[1724318102717,10.46,142.96,142.93,0.12549]
[1724318103685,10.46,142.96,142.91,15.8038]
[1724318105589,10.46,142.96,142.92,0.25098]
[1724318105791,10.46,142.96,142.92,45.25098]
[1724318112619,10.46,142.96,142.92,0.25098]
[1724318112818,17.456,142.94,142.89,6.2645]
[1724318112995,10.46,142.92,142.89,6.2645]
[1724318113811,10.46,142.94,142.89,6.2645]
[1724318114017,6.995,142.96,142.89,6.2645]
[1724318114324,10.46,142.95,142.89,6.2645]
[1724318115113,10.46,142.95,142.9,0.25098]
[1724318115308,10.46,142.95,142.9,45.25098]
[1724318115513,17.4554,142.95,142.9,45.25098]
[1724318116401,10.46,142.95,142.9,45.25098]
[1724318121599,10.46,142.93,142.89,6.2645]
[1724318123225,10.46,142.93,142.9,0.12549]
[1724318123927,10.46,142.91,142.88,0.8434247]
[1724318124111,6.9967,142.93,142.88,0.8434247]
[1724318124431,9.4342,142.95,142.88,0.8434247]
[1724318124432,10.46,142.91,142.88,0.8434247]
[1724318124726,6.9969,142.92,142.88,0.8434247]
[1724318125728,10.46,142.91,142.88,0.8434247]
[1724318128227,10.46,142.89,142.88,0.8434247]
[1724318128616,12.20992811,142.89,142.88,0.8434247]
[1724318129133,12.20992811,142.89,142.84,15.7631]
[1724318129323,10.46,142.85,142.84,15.7631]
[1724318129524,1.7500514,142.87,142.84,15.7631]
[1724318129832,1.75003679,142.91,142.84,15.7631]
[1724318130043,10.46,142.89,142.84,15.7631]
[1724318130830,10.46,142.89,142.85,45.25098]
[1724318131343,22.82347023,142.96,142.86,21.39970019]
[1724318131636,10.46,142.93,142.87,45.25098]
[1724318132223,10.46,142.91,142.87,45.25098]
[1724318134628,10.46,142.91,142.84,15.7631]
[1724318134839,10.46,142.89,142.85,45.25098]
[1724318136116,10.46,142.91,142.85,45.25098]
[1724318136732,10.46,142.91,142.86,20.0]
[1724318136909,10.46,142.91,142.87,45.25098]
[1724318139543,1.74947145,142.95,142.87,45.25098]
[1724318139708,6.2804,142.99,142.87,45.25098]
[1724318139709,10.46,142.93,142.88,22.3963]
[1724318139910,10.46,142.93,142.89,45.25098]
[1724318140144,10.46,142.93,142.89,0.12549]
[1724318140340,10.46,142.93,142.89,45.25098]
[1724318141131,10.46,142.93,142.9,1.39935633]
[1724318141335,10.46,142.93,142.89,45.25098]
[1724318141539,1.74909153,142.98,142.89,45.25098]
[1724318141758,10.46,142.95,142.89,45.25098]
[1724318147037,1.74912879,142.94,142.89,45.25098]
[1724318147228,10.46,142.95,142.89,45.25098]
[1724318148528,1.74914158,142.94,142.89,45.25098]
[1724318148728,10.46,142.93,142.89,45.25098]
[1724318148934,10.46,142.93,142.88,22.3963]
[1724318150361,10.46,142.93,142.89,45.25098]
[1724318151436,10.46,142.95,142.89,45.25098]
[1724318154050,10.46,142.95,142.9,20.0]
[1724318154250,10.46,142.95,142.91,45.25098]
[1724318158955,10.46,142.95,142.91,0.25098]
[1724318164280,1.74907346,142.94,142.88,22.3963]
[1724318165657,10.46,142.93,142.89,45.25098]
[1724318165862,10.46,142.91,142.88,15.9319]
[1724318166168,10.46,142.91,142.84,22.4636]
[1724318167595,10.46,142.91,142.85,45.12549]
[1724318168963,10.46,142.89,142.86,0.12549]
[1724318169161,10.46,142.89,142.85,45.12549]
[1724318174569,10.46,142.91,142.85,45.12549]
[1724318174783,1.74971016,142.9,142.85,45.12549]
[1724318175073,10.46,142.91,142.85,45.12549]
[1724318175398,10.46,142.91,142.86,0.12549]
[1724318175703,9.4342,142.95,142.86,0.12549]
[1724318175704,10.46,142.89,142.86,0.12549]
[1724318175886,10.46,142.89,142.85,45.12549]
[1724318176388,10.46,142.91,142.86,0.12549]
[1724318177487,10.46,142.94,142.86,0.12549]
[1724318177689,20.0,142.93,142.86,0.12549]
[1724318177895,21.74930489,142.93,142.86,0.12549]
[1724318178497,12.20932647,142.92,142.86,0.12549]
[1724318181116,10.46,142.92,142.86,0.12549]
[1724318184405,12.20936914,142.92,142.86,0.12549]
[1724318188822,10.46,142.9,142.86,0.12549]
[1724318188984,10.46,142.88,142.86,0.12549]
[1724318189322,10.46,142.9,142.85,45.12549]
[1724318189816,20.0,142.93,142.85,65.12549]
[1724318190034,10.46,142.92,142.86,1.5250701]
[1724318190322,10.46,142.92,142.87,0.12549]
[1724318190617,10.46,142.92,142.86,0.12549]
[1724318191492,9.4342,142.95,142.88,15.9901]
[1724318191493,10.46,142.95,142.88,15.9901]
[1724318191706,10.46,142.95,142.89,46.65037905]
[1724318191907,10.46,142.95,142.9,1.39935785]
[1724318192723,6.43771599,142.97,142.9,1.39935785]
[1724318192724,16.89771599,142.97,142.91,0.25098]
[1724318192936,10.46,142.97,142.91,0.25098]
[1724318196328,10.46,142.97,142.9,0.25098]
[1724318196643,10.46,142.95,142.9,0.25098]
[1724318198738,10.46,142.93,142.89,6.1959]
[1724318200808,10.46,142.91,142.89,6.1959]
[1724318201658,12.20935895,142.93,142.89,6.1959]
[1724318201865,10.46,142.93,142.89,6.1959]
[1724318238059,10.46,142.9,142.88,15.9901]
[1724318243554,10.46,142.9,142.85,6.6418]
[1724318243555,1.74953898,142.89,142.85,21.6822]
[1724318243863,10.46,142.88,142.85,21.6822]
[1724318247648,10.46,142.9,142.85,21.6822]
[1724318248247,10.46,142.9,142.86,45.0]
[1724318248538,10.46,142.94,142.87,1.39961411]
[1724318248874,7.27819048,142.97,142.87,1.39961411]
[1724318248875,10.46,142.95,142.89,15.9402]
[1724318249165,10.46,142.95,142.9,1.39932251]
[1724318249970,10.46,142.96,142.91,1.39919319]
[1724318250473,10.46,142.96,142.9,51.5177]
[1724318251647,1.74901941,142.95,142.9,51.5177]
[1724318251848,10.46,142.96,142.9,51.5177]
[1724318253088,10.46,142.94,142.9,51.5177]
[1724318253381,10.46,142.95,142.91,1.39926224]
[1724318253669,10.46,142.95,142.9,71.5177]
[1724318253898,10.46,142.95,142.91,0.25098]
[1724318254756,10.46,142.97,142.91,0.25098]
[1724318256167,1.74885789,142.96,142.91,0.25098]
[1724318256553,10.46,142.97,142.91,0.25098]
[1724318265666,10.46,142.95,142.91,0.25098]
[1724318270911,1.7487203,142.98,142.91,0.25098]
[1724318271213,10.46,143.0,142.92,36.4632]
[1724318271376,6.9926,143.01,142.93,46.64980153]
[1724318271575,10.46,143.0,142.93,46.64980153]
[1724318272081,10.46,143.0,142.94,26.1343]
[1724318272279,6.43771599,143.04,142.96,15.8712]
[1724318272498,10.46,143.01,142.97,46.39862169]
[1724318272711,6.43771599,143.04,142.97,45.0]
[1724318273012,10.46,143.03,142.97,45.0]
[1724318273215,10.46,143.02,142.97,45.0]
[1724318273418,6.9901,143.06,142.98,27.42043734]
[1724318273623,10.46,143.04,142.99,46.39836958]
[1724318274815,10.46,143.04,143.01,16.6268]
[1724318275590,6.43771599,143.07,143.01,16.6268]
[1724318275790,10.46,143.07,143.01,16.6268]
[1724318276601,1.74766407,143.08,143.02,0.12549]
[1724318276793,10.46,143.07,143.02,45.12549]
[1724318279513,10.46,143.05,143.02,45.12549]
[1724318279702,10.46,143.05,143.01,16.6268]
[1724318283805,10.46,143.05,143.02,45.0]
[1724318286440,10.46,143.05,143.01,16.6268]
[1724318298213,10.46,143.05,143.02,1.39816572]
[1724318298734,10.46,143.05,143.01,16.6268]
[1724318298920,10.46,143.07,143.02,1.39806672]
[1724318299324,10.46,143.07,143.02,45.0]
[1724318300942,10.46,143.05,143.02,45.0]
[1724318306254,10.46,143.06,143.02,45.0]
[1724318311464,8.73621358,143.09,143.02,45.0]
[1724318311771,10.46,143.06,143.02,45.0]
[1724318314337,8.73621358,143.09,143.02,45.0]
[1724318314540,10.46,143.06,143.02,45.0]
[1724318315069,10.46,143.07,143.03,8.00801394]
[1724318315265,10.46,143.07,143.03,8.13350394]
[1724318315973,6.43801719,143.1,143.03,8.13350394]
[1724318316171,10.46,143.09,143.03,8.13350394]
[1724318316375,6.43801719,143.1,143.05,15.8062]
[1724318316541,16.89801719,143.1,143.06,1.39775918]
[1724318318070,6.43801719,143.1,143.06,1.39775918]
[1724318318471,10.46,143.1,143.06,1.39775918]
[1724318318771,10.46,143.11,143.06,1.39775918]
[1724318318977,10.46,143.09,143.05,15.8062]
[1724318319183,13.42521719,143.12,143.05,15.8062]
[1724318319481,10.46,143.09,143.05,15.8062]
[1724318319969,13.42521719,143.12,143.05,15.8062]
[1724318319970,10.46,143.07,143.05,15.8062]
[1724318324851,1.74751081,143.08,143.05,15.8062]
[1724318325052,6.9881,143.1,143.05,15.8062]
[1724318325266,10.46,143.08,143.05,15.8062]
[1724318330975,8.73542369,143.1,143.05,15.8062]
[1724318331287,10.46,143.06,143.05,15.8062]
[1724318334807,6.9877,143.11,143.05,15.8062]
[1724318335008,10.46,143.08,143.06,1.39776836]
[1724318336884,10.46,143.08,143.05,15.8062]
[1724318338814,10.46,143.08,143.06,1.39778179]
[1724318339189,10.46,143.08,143.05,15.8062]
[1724318340817,10.46,143.08,143.02,20.0]
[1724318342086,10.46,143.08,143.03,0.25098]
[1724318344494,6.9881,143.1,143.03,0.25098]
[1724318344798,10.46,143.1,143.04,35.45]
[1724318344998,10.46,143.1,143.05,1.39778031]
[1724318346818,13.42521719,143.12,143.05,1.39778031]
[1724318347023,10.46,143.1,143.05,1.39778031]
[1724318348315,6.43801719,143.12,143.05,1.39778031]
[1724318348541,10.46,143.11,143.06,0.25098]
[1724318348718,10.46,143.11,143.06,1.64860735]
[1724318350038,6.43801719,143.12,143.06,20.25098]
[1724318350334,10.46,143.11,143.06,20.25098]
[1724318351035,6.9866,143.13,143.06,20.25098]
[1724318351222,10.46,143.11,143.06,20.25098]
[1724318352420,10.46,143.11,143.06,0.25098]
[1724318354541,6.9871,143.12,143.06,0.25098]
[1724318354745,10.46,143.1,143.06,0.25098]
[1724318355112,1.74703099,143.14,143.06,21.64860573]
[1724318355113,6.9865,143.14,143.06,21.64860573]
[1724318355329,10.46,143.12,143.06,21.64860573]
[1724318355741,6.9865,143.14,143.06,21.64860573]
[1724318356032,10.46,143.12,143.06,21.64860573]
[1724318356239,10.46,143.12,143.07,51.6355]
[1724318356419,10.46,143.12,143.08,1.64842077]
[1724318356619,10.46,143.12,143.08,17.25752077]
[1724318357226,6.9865,143.14,143.08,17.25752077]
[1724318357449,10.46,143.13,143.08,17.25752077]
[1724318357827,10.46,143.13,143.09,1.39744755]
[1724318359250,6.43801719,143.15,143.09,1.39744755]
[1724318359424,10.46,143.14,143.09,1.39744755]
[1724318359850,6.43801719,143.15,143.09,1.39744755]
[1724318360055,10.46,143.13,143.09,1.39744755]
[1724318362554,10.46,143.13,143.08,35.86008]
[1724318362725,10.46,143.13,143.09,45.0]
[1724318362924,10.46,143.13,143.1,0.25098]
[1724318364938,10.46,143.13,143.1,20.25098]
[1724318370056,10.46,143.14,143.1,20.25098]